[Event "RUS-ch Rapid Men 2018"]
[Site "Sochi"]
[Date "2018.10.06"]
[Round "7"]
[White "Demidov, Mikhail"]
[Black "Sharafiev, Azat"]
[Result "1/2-1/2"]
[ECO "A40"]
[WhiteElo "2514"]
[BlackElo "2432"]
[Annotator "ChessBase"]
[PlyCount "99"]
[EventDate "2018.10.05"]
[EventType "swiss"]
[EventCountry "RUS"]
[SourceTitle "playchess.com"]
[Source "ChessBase"]
[SourceQuality "1"]
[TimeControl "900+10"]

1. d4 {[%emt 0:00:00]} e6 {[%emt 0:00:00]} 2. Nf3 {[%emt 0:00:01]} c5 {[%emt 0:00:00]} 3. e3 {[%emt 0:00:01]} Nf6 {[%emt 0:00:13]} 4. c4 {[%emt 0:00:01]} d5 {[%emt 0:00:31]} 5. a3 {[%emt 0:00:07]} dxc4 {[%emt 0:00:31]} 6. Bxc4 {[%emt 0:00:03]} a6 {[%emt 0:00:16]} 7. O-O {[%emt 0:00:14]} Nbd7 {[%emt 0:00:24]} 8. dxc5 {[%emt 0:00:09]} Bxc5 {[%emt 0:00:15]} 9. b4 {[%emt 0:00:02]} Be7 {[%emt 0:00:06]} 10. Bb2 {[%emt 0:00:02]} b5 {[%emt 0:00:05]} 11. Bd3 {[%emt 0:00:14]} Bb7 {[%emt 0:00:08]} 12. Nbd2 {[%emt 0:00:14]} O-O {[%emt 0:01:51]} 13. Qe2 {[%emt 0:01:34]} Nd5 {[%emt 0:00:21]} 14. Nb3 {[%emt 0:00:43]} Rc8 {[%emt 0:00:06]} 15. Rac1 {[%emt 0:00:25]} h6 {[%emt 0:02:58]} 16. Na5 {[%emt 0:00:37]} Ba8 {[%emt 0:00:09]} 17. Rxc8 {[%emt 0:00:15]} Qxc8 {[%emt 0:00:02]} 18. Rc1 {[%emt 0:00:02]} Qe8 {[%emt 0:02:12]} 19. Bb1 {[%emt 0:01:25]} Bf6 {[%emt 0:00:31]} 20. Qc2 {[%emt 0:04:13]} g6 {[%emt 0:00:04]} 21. Bxf6 {[%emt 0:00:03]} N7xf6 {[%emt 0:00:15]} 22. Qc5 {[%emt 0:00:10]} Qb8 {[%emt 0:01:47]} 23. h3 {[%emt 0:01:38]} Nd7 {[%emt 0:01:33]} 24. Qc2 {[%emt 0:02:30]} N5b6 25. Qc7 Qxc7 {[%emt 0:01:06]} 26. Rxc7 {[%emt 0:00:11]} Rc8 27. Rxc8+ {[%emt 0:00:12]} Nxc8 {[%emt 0:00:05]} 28. Nd2 Kf8 {[%emt 0:00:12]} 29. f3 {[%emt 0:00:13]} Ke7 {[%emt 0:00:15]} 30. Kf2 {[%emt 0:00:01]} Ncb6 {[%emt 0:01:42]} 31. e4 {[%emt 0:00:01]} e5 {[%emt 0:00:10]} 32. Ba2 {[%emt 0:00:20]} f5 {[%emt 0:00:17]} 33. exf5 {[%emt 0:00:17]} gxf5 {[%emt 0:00:02]} 34. Bb1 {[%emt 0:00:05]} f4 {[%emt 0:00:26]} 35. Be4 {[%emt 0:00:01]} Bxe4 {[%emt 0:00:15]} 36. Nxe4 {[%emt 0:00:01]} Ke6 {[%emt 0:00:33]} 37. Ke2 {[%emt 0:00:02]} Kd5 {[%emt 0:00:21]} 38. Kd3 {[%emt 0:00:02]} Na4 39. g4 {[%emt 0:01:57]} fxg3 {[%emt 0:00:21]} 40. Nxg3 {[%emt 0:00:02]} Nb2+ {[%emt 0:00:05]} 41. Kc3 {[%emt 0:00:12]} Nd1+ {[%emt 0:00:40]} 42. Kd2 {[%emt 0:00:13]} Nb2 {[%emt 0:00:09]} 43. Kc2 {[%emt 0:01:22]} Nc4 {[%emt 0:00:11]} 44. Nxc4 {[%emt 0:00:02]} Kxc4 {[%emt 0:00:02]} 45. Nf5 {[%emt 0:00:02]} h5 {[%emt 0:00:06]} 46. Ne3+ {[%emt 0:00:35]} Kd4 {[%emt 0:00:02]} 47. Nf5+ {[%emt 0:00:01]} Kc4 {[%emt 0:00:01]} 48. Ne3+ {[%emt 0:00:09]} Kd4 {[%emt 0:00:01]} 49. Nf5+ {[%emt 0:00:01]} Kc4 {[%emt 0:00:01]} 50. Ne3+ {[%emt 0:00:01]} 1/2-1/2

[Event "RUS-ch Rapid Men 2018"]
[Site "Sochi"]
[Date "2018.10.06"]
[Round "7"]
[White "Fakhrutdinov, Timur"]
[Black "Bocharov, Dmitry"]
[Result "0-1"]
[ECO "B06"]
[WhiteElo "2472"]
[BlackElo "2557"]
[Annotator "RC"]
[PlyCount "53"]
[EventDate "2018.10.05"]
[EventType "swiss"]
[EventCountry "RUS"]
[SourceTitle "playchess.com"]
[Source "ChessBase"]
[SourceQuality "1"]
[TimeControl "900+10"]

1. e4 {[%emt 0:00:00]} g6 {[%emt 0:00:00]} 2. d4 {[%emt 0:00:00]} Bg7 {[%emt 0:00:00]} 3. Nc3 {[%emt 0:00:00]} d6 {[%emt 0:00:00]} 4. f4 {[%emt 0:00:00]} a6 {[%emt 0:00:00]} 5. Nf3 {[%emt 0:00:13]} b5 {[%emt 0:00:00]} 6. e5 {[%emt 0:00:45]} Bb7 {[%emt 0:01:52]} 7. Bd3 {[%emt 0:00:27]} e6 {[%emt 0:00:09]} 8. Ne4 {[%emt 0:01:14]} Ne7 {[%emt 0:00:29]} 9. O-O {[%emt 0:00:12]} O-O {[%emt 0:00:03]} 10. c3 {[%emt 0:00:46]} Nf5 {[%emt 0:01:50]} 11. Qe1 {[%emt 0:01:09]} Nd7 {[%emt 0:01:37]} 12. g4 {[%emt 0:01:47]} Ne7 {[%emt 0:00:01]} 13. Qh4 {[%emt 0:02:24]} Nc8 {[%emt 0:04:24]} 14. Qh3 {[%emt 0:02:38]} Qe7 {[%emt 0:04:38]} 15. f5 {[%emt 0:02:46]} exf5 {[%emt 0:00:35]} 16. Bg5 {[%emt 0:01:05]} f6 {[%emt 0:00:31]} 17. gxf5 {[%emt 0:01:02]} dxe5 {[%emt 0:00:48]} 18. fxg6 {[%emt 0:01:14]} hxg6 {[%emt 0:00:04]} 19. Bc2 {[%emt 0:00:16]} Ncb6 {[%emt 0:00:33]} 20. Bh4 {[%emt 0:00:09]} Rae8 {[%emt 0:00:30]} 21. Rae1 {[%emt 0:00:01]} Qe6 {[%emt 0:00:04]} 22. Qg2 {[%emt 0:00:17]} f5 {[%emt 0:00:11]} 23. Neg5 {[%emt 0:00:06]} Qc6 {[%emt 0:00:09]} 24. Bg3 {[%emt 0:00:15]} exd4 {[%emt 0:00:12]} 25. Qh3 Nf6 26. Be5 {[%emt 0:00:17]} Nh5 {[%emt 0:00:06]} 27. Nxd4 0-1

[Event "RUS-ch Rapid Men 2018"]
[Site "Sochi"]
[Date "2018.10.06"]
[Round "7"]
[White "Pogromsky, Mikhail"]
[Black "Orlinkov, Maxim L."]
[Result "1-0"]
[ECO "A41"]
[WhiteElo "2415"]
[BlackElo "2293"]
[Annotator "NA RC"]
[PlyCount "95"]
[EventDate "2018.10.05"]
[EventType "swiss"]
[EventCountry "RUS"]
[SourceTitle "playchess.com"]
[Source "ChessBase"]
[SourceQuality "1"]
[TimeControl "900+10"]

1. Nf3 {[%emt 0:00:00]} d6 {[%emt 0:00:17]} 2. d4 {[%emt 0:00:00]} Bg4 {[%emt 0:00:02]} 3. Qd3 {[%emt 0:00:40]} c6 {[%emt 0:00:22]} 4. g3 {[%emt 0:00:17]} Nf6 {[%emt 0:00:30]} 5. Bg2 {[%emt 0:00:02]} e6 {[%emt 0:00:05]} 6. c4 {[%emt 0:00:23]} Nbd7 {[%emt 0:00:48]} 7. Nc3 {[%emt 0:00:07]} d5 {[%emt 0:00:36]} 8. cxd5 {[%emt 0:00:15]} cxd5 {[%emt 0:01:12]} 9. Bf4 {[%emt 0:00:08]} a6 {[%emt 0:00:28]} 10. O-O {[%emt 0:00:31]} Be7 {[%emt 0:02:25]} 11. Rfc1 {[%emt 0:00:34]} O-O {[%emt 0:00:29]} 12. Na4 {[%emt 0:01:02]} b5 {[%emt 0:02:57]} 13. Bc7 {[%emt 0:00:56]} Qe8 {[%emt 0:00:08]} 14. Nb6 {[%emt 0:00:08]} Nxb6 {[%emt 0:00:06]} 15. Bxb6 {[%emt 0:00:01]} Bxf3 {[%emt 0:00:49]} 16. Bxf3 {[%emt 0:00:29]} Rc8 {[%emt 0:00:33]} 17. a4 {[%emt 0:01:22]} Rc4 {[%emt 0:01:46]} 18. Ba5 {[%emt 0:05:11]} Qc6 {[%emt 0:00:51]} 19. Bd2 {[%emt 0:00:11]} Qb6 {[%emt 0:02:07]} 20. e3 {[%emt 0:01:05]} Rxa4 {[%emt 0:01:03]} 21. Rxa4 {[%emt 0:01:32]} bxa4 {[%emt 0:00:04]} 22. Qc2 {[%emt 0:00:28]} Bb4 {[%emt 0:00:38]} 23. Bxb4 {[%emt 0:02:39]} Qxb4 {[%emt 0:00:01]} 24. Ra1 {[%emt 0:00:00]} Rb8 {[%emt 0:00:27]} 25. Rxa4 {[%emt 0:00:04]} Qxb2 {[%emt 0:00:02]} 26. Qxb2 {[%emt 0:00:08]} Rxb2 {[%emt 0:00:01]} 27. Rxa6 {[%emt 0:00:01]} g5 {[%emt 0:00:12]} 28. g4 {[%emt 0:00:02]} Kg7 {[%emt 0:00:19]} 29. Kg2 {[%emt 0:00:03]} h6 {[%emt 0:00:09]} 30. Ra1 {[%emt 0:00:15]} h5 {[%emt 0:00:16]} 31. h3 {[%emt 0:00:14]} h4 {[%emt 0:00:03]} 32. Re1 {[%emt 0:00:03]} Rd2 {[%emt 0:00:02]} 33. Re2 {[%emt 0:00:02]} Rxe2 {[%emt 0:00:08]} 34. Bxe2 {[%emt 0:00:01]} Ne4 {[%emt 0:00:09]} 35. Bd3 {[%emt 0:00:08]} Nd6 {[%emt 0:00:14]} 36. f4 {[%emt 0:00:31]} Kf6 {[%emt 0:00:20]} 37. Kf3 {[%emt 0:00:04]} Ne8 {[%emt 0:00:08]} 38. Bc2 {[%emt 0:00:48]} Nd6 {[%emt 0:00:02]} 39. Bd3 {[%emt 0:00:02]} Ne8 {[%emt 0:00:01]} 40. Ke2 {[%emt 0:00:10]} Nd6 {[%emt 0:00:08]} 41. Kd2 {[%emt 0:00:02]} Nc8 {[%emt 0:00:17]} 42. Kc3 {[%emt 0:00:05]} Nd6 {[%emt 0:00:15]} 43. Kb4 {[%emt 0:00:25]} Ne8 {[%emt 0:00:28]} 44. Kc5 {[%emt 0:00:06]} Ng7 {[%emt 0:00:05]} 45. Kd6 {[%emt 0:00:05]} Ne8+ {[%emt 0:00:04]} 46. Kd7 {[%emt 0:00:06]} Ng7 {[%emt 0:00:01]} 47. Bc2 {[%emt 0:00:25]} gxf4 {[%emt 0:00:27]} 48. exf4 {[%emt 0:00:02]} 1-0

[Event "RUS-ch Rapid Men 2018"]
[Site "Sochi"]
[Date "2018.10.06"]
[Round "8"]
[White "Artemiev, Vladislav"]
[Black "Morozevich, Alexander"]
[Result "1/2-1/2"]
[ECO "A20"]
[WhiteElo "2706"]
[BlackElo "2656"]
[Annotator "RC"]
[PlyCount "192"]
[EventDate "2018.10.05"]
[EventType "swiss"]
[EventCountry "RUS"]
[SourceTitle "playchess.com"]
[Source "ChessBase"]
[SourceQuality "1"]
[TimeControl "900+10"]

1. c4 {[%emt 0:00:17]} e5 {[%emt 0:01:13]} 2. d3 {[%emt 0:00:11]} Bb4+ {[%emt 0:00:38]} 3. Nd2 {[%emt 0:00:03]} c6 {[%emt 0:00:55]} 4. Ngf3 {[%emt 0:00:04]} d6 {[%emt 0:00:36]} 5. a3 {[%emt 0:00:34]} Ba5 {[%emt 0:00:01]} 6. b4 {[%emt 0:00:01]} Bc7 {[%emt 0:00:01]} 7. Bb2 {[%emt 0:00:01]} Nf6 {[%emt 0:00:04]} 8. e3 {[%emt 0:00:01]} O-O {[%emt 0:00:03]} 9. Be2 {[%emt 0:00:01]} Re8 {[%emt 0:00:05]} 10. Rc1 {[%emt 0:01:04]} Nbd7 {[%emt 0:00:57]} 11. Qc2 {[%emt 0:00:04]} Nf8 {[%emt 0:01:04]} 12. O-O {[%emt 0:00:04]} Ng6 {[%emt 0:00:42]} 13. Rfd1 {[%emt 0:01:09]} Qe7 {[%emt 0:00:40]} 14. b5 {[%emt 0:00:59]} Bd7 {[%emt 0:00:41]} 15. a4 {[%emt 0:00:15]} a6 {[%emt 0:00:22]} 16. Qb3 {[%emt 0:00:09]} axb5 {[%emt 0:00:10]} 17. axb5 {[%emt 0:00:05]} cxb5 {[%emt 0:00:14]} 18. cxb5 {[%emt 0:00:32]} Be6 {[%emt 0:00:07]} 19. Qc2 {[%emt 0:00:25]} Rec8 {[%emt 0:00:02]} 20. d4 {[%emt 0:03:39]} d5 {[%emt 0:03:09]} 21. dxe5 {[%emt 0:00:08]} Nxe5 {[%emt 0:00:01]} 22. Qb1 {[%emt 0:00:33]} Nxf3+ {[%emt 0:01:18]} 23. Bxf3 {[%emt 0:00:08]} Ng4 {[%emt 0:00:23]} 24. Nf1 {[%emt 0:00:04]} Qg5 {[%emt 0:01:11]} 25. Bd4 {[%emt 0:01:09]} h5 {[%emt 0:00:06]} 26. Qb2 {[%emt 0:01:50]} Ne5 {[%emt 0:00:54]} 27. Bxe5 {[%emt 0:00:07]} Bxe5 {[%emt 0:00:01]} 28. Qe2 {[%emt 0:00:26]} Rxc1 {[%emt 0:00:22]} 29. Rxc1 {[%emt 0:00:01]} h4 {[%emt 0:00:41]} 30. Qd3 {[%emt 0:00:49]} Rd8 {[%emt 0:00:43]} 31. Rd1 {[%emt 0:01:03]} b6 {[%emt 0:00:29]} 32. Nd2 {[%emt 0:00:57]} d4 {[%emt 0:00:06]} 33. Nc4 {[%emt 0:00:41]} Bf6 {[%emt 0:01:16]} 34. Nd2 {[%emt 0:02:46]} dxe3 {[%emt 0:00:13]} 35. Qxe3 {[%emt 0:00:01]} Qxb5 {[%emt 0:00:19]} 36. Rb1 {[%emt 0:00:01]} Qd3 {[%emt 0:00:50]} 37. Qxd3 {[%emt 0:00:01]} Rxd3 {[%emt 0:00:00]} 38. Ne4 {[%emt 0:00:04]} Bd4 {[%emt 0:00:14]} 39. Ng5 {[%emt 0:00:31]} Bf5 {[%emt 0:00:18]} 40. Re1 {[%emt 0:00:05]} g6 {[%emt 0:00:09]} 41. Be2 {[%emt 0:00:27]} Rc3 {[%emt 0:00:11]} 42. Nf3 {[%emt 0:00:11]} Bf6 {[%emt 0:00:07]} 43. h3 {[%emt 0:00:01]} Kg7 {[%emt 0:00:12]} 44. Rd1 {[%emt 0:00:02]} Rb3 {[%emt 0:00:11]} 45. Nd4 {[%emt 0:00:10]} Bxd4 {[%emt 0:00:13]} 46. Rxd4 {[%emt 0:00:00]} g5 {[%emt 0:00:03]} 47. f4 {[%emt 0:00:18]} f6 {[%emt 0:00:18]} 48. Rd5 {[%emt 0:00:10]} Be4 {[%emt 0:00:09]} 49. Rd4 {[%emt 0:00:13]} f5 {[%emt 0:00:03]} 50. fxg5 {[%emt 0:00:20]} Kg6 {[%emt 0:00:01]} 51. Bf3 {[%emt 0:00:10]} Bxf3 {[%emt 0:00:16]} 52. gxf3 {[%emt 0:00:01]} Kxg5 {[%emt 0:00:01]} 53. f4+ {[%emt 0:00:00]} Kf6 {[%emt 0:00:06]} 54. Rd6+ {[%emt 0:00:10]} Ke7 {[%emt 0:00:14]} 55. Rd5 {[%emt 0:00:16]} Ke6 {[%emt 0:00:03]} 56. Re5+ {[%emt 0:00:01]} Kf6 {[%emt 0:00:02]} 57. Kh2 {[%emt 0:00:28]} b5 {[%emt 0:00:01]} 58. Rc5 {[%emt 0:00:17]} Rb2+ {[%emt 0:00:07]} 59. Kg1 {[%emt 0:00:01]} b4 {[%emt 0:00:01]} 60. Rc6+ {[%emt 0:00:22]} Ke7 {[%emt 0:00:02]} 61. Rc5 {[%emt 0:00:02]} Ke6 {[%emt 0:00:03]} 62. Re5+ {[%emt 0:00:02]} Kf6 {[%emt 0:00:01]} 63. Rd5 {[%emt 0:00:27]} b3 {[%emt 0:00:21]} 64. Rd3 {[%emt 0:00:05]} Ke6 {[%emt 0:00:25]} 65. Kf1 {[%emt 0:00:05]} Rb1+ {[%emt 0:00:10]} 66. Kg2 {[%emt 0:00:01]} b2 {[%emt 0:00:25]} 67. Rb3 {[%emt 0:00:04]} Kd5 {[%emt 0:00:00]} 68. Rb4 {[%emt 0:00:04]} Kc5 {[%emt 0:00:02]} 69. Rb3 {[%emt 0:00:27]} Kc4 {[%emt 0:00:05]} 70. Rb8 {[%emt 0:00:04]} Kc3 {[%emt 0:00:34]} 71. Rc8+ {[%emt 0:00:02]} Kd4 {[%emt 0:00:10]} 72. Rb8 {[%emt 0:00:02]} Ke4 {[%emt 0:00:12]} 73. Rb4+ {[%emt 0:00:02]} Ke3 {[%emt 0:00:01]} 74. Kh2 {[%emt 0:00:08]} Kf3 {[%emt 0:00:31]} 75. Rb3+ {[%emt 0:00:12]} Kxf4 {[%emt 0:00:01]} 76. Rf3+ {[%emt 0:00:01]} Ke4 {[%emt 0:00:08]} 77. Rb3 {[%emt 0:00:02]} f4 {[%emt 0:00:03]} 78. Rb4+ {[%emt 0:00:12]} Kd5 {[%emt 0:00:13]} 79. Rb3 {[%emt 0:00:16]} Kc4 {[%emt 0:00:17]} 80. Rb8 {[%emt 0:00:06]} Kd3 {[%emt 0:00:17]} 81. Rd8+ {[%emt 0:00:04]} Ke2 {[%emt 0:00:12]} 82. Re8+ {[%emt 0:01:16]} Kf1 {[%emt 0:00:03]} 83. Rb8 {[%emt 0:00:05]} Re1 {[%emt 0:00:09]} 84. Rxb2 {[%emt 0:00:02]} Re2+ {[%emt 0:00:01]} 85. Kh1 {[%emt 0:00:01]} Kf2 {[%emt 0:00:22]} 86. Rb8 {[%emt 0:00:25]} f3 {[%emt 0:00:12]} 87. Rg8 {[%emt 0:00:21]} Ke3 {[%emt 0:00:13]} 88. Re8+ {[%emt 0:00:09]} Kf4 {[%emt 0:00:05]} 89. Rg8 {[%emt 0:00:06]} Re1+ {[%emt 0:00:37]} 90. Kh2 {[%emt 0:00:01]} Rb1 {[%emt 0:00:08]} 91. Rf8+ {[%emt 0:00:08]} Ke3 {[%emt 0:00:01]} 92. Re8+ {[%emt 0:00:01]} Kd4 {[%emt 0:00:12]} 93. Rd8+ {[%emt 0:00:01]} Ke4 {[%emt 0:00:14]} 94. Rd4+ {[%emt 0:00:10]} Ke3 {[%emt 0:00:20]} 95. Rd3+ {[%emt 0:00:01]} Kf4 {[%emt 0:00:10]} 96. Rxf3+ {[%emt 0:00:02]} Kxf3 {[%emt 0:00:01]} 1/2-1/2

[Event "RUS-ch Rapid Men 2018"]
[Site "Sochi"]
[Date "2018.10.06"]
[Round "8"]
[White "Pridorozhni, Aleksei"]
[Black "Pogromsky, Mikhail"]
[Result "1-0"]
[ECO "A40"]
[WhiteElo "2574"]
[BlackElo "2415"]
[Annotator "ChessBase"]
[PlyCount "61"]
[EventDate "2018.10.05"]
[EventType "swiss"]
[EventCountry "RUS"]
[SourceTitle "playchess.com"]
[Source "ChessBase"]
[SourceQuality "1"]
[TimeControl "900+10"]

1. c4 {[%emt 0:00:00]} b6 {[%emt 0:00:07]} 2. d4 {[%emt 0:00:02]} e6 {[%emt 0:00:31]} 3. e4 {[%emt 0:00:03]} Bb7 {[%emt 0:00:06]} 4. Bd3 {[%emt 0:00:02]} g6 {[%emt 0:00:25]} 5. Nc3 {[%emt 0:00:26]} Bg7 {[%emt 0:00:03]} 6. Be3 {[%emt 0:00:05]} d6 {[%emt 0:00:19]} 7. f4 {[%emt 0:00:15]} Ne7 {[%emt 0:01:03]} 8. Nf3 {[%emt 0:00:03]} Nd7 {[%emt 0:00:37]} 9. O-O {[%emt 0:00:15]} O-O {[%emt 0:01:37]} 10. Qd2 {[%emt 0:00:20]} a6 {[%emt 0:00:29]} 11. Rae1 {[%emt 0:00:53]} c5 {[%emt 0:00:40]} 12. d5 {[%emt 0:00:03]} exd5 {[%emt 0:00:05]} 13. exd5 {[%emt 0:00:04]} b5 {[%emt 0:00:07]} 14. b3 {[%emt 0:00:22]} Nf6 {[%emt 0:00:26]} 15. f5 {[%emt 0:01:14]} Ng4 {[%emt 0:05:39]} 16. fxg6 {[%emt 0:01:41]} hxg6 {[%emt 0:00:53]} 17. Bf4 {[%emt 0:00:06]} Bc8 {[%emt 0:00:49]} 18. h3 {[%emt 0:00:18]} Nf6 {[%emt 0:00:07]} 19. Bh2 {[%emt 0:00:28]} Ra7 {[%emt 0:00:49]} 20. cxb5 {[%emt 0:00:47]} axb5 {[%emt 0:00:42]} 21. Bxb5 {[%emt 0:00:04]} Nf5 {[%emt 0:00:16]} 22. Bc4 {[%emt 0:00:21]} Ba6 {[%emt 0:00:28]} 23. Nb5 {[%emt 0:02:45]} Bxb5 {[%emt 0:00:24]} 24. Bxb5 {[%emt 0:00:02]} Qa5 {[%emt 0:00:06]} 25. Qxa5 {[%emt 0:00:04]} Rxa5 {[%emt 0:00:01]} 26. Bc4 {[%emt 0:00:03]} Bh6 {[%emt 0:00:52]} 27. a4 {[%emt 0:00:26]} Ne3 {[%emt 0:00:14]} 28. Bxd6 {[%emt 0:00:06]} Rc8 {[%emt 0:00:08]} 29. Ne5 {[%emt 0:02:24]} Nxf1 {[%emt 0:00:09]} 30. Kxf1 {[%emt 0:00:07]} Raa8 {[%emt 0:01:11]} 31. Be7 {[%emt 0:00:13]} 1-0

[Event "RUS-ch Rapid Men 2018"]
[Site "Sochi"]
[Date "2018.10.06"]
[Round "8"]
[White "Lobanov, Sergei"]
[Black "Rozum, Ivan"]
[Result "0-1"]
[ECO "B12"]
[WhiteElo "2539"]
[BlackElo "2573"]
[Annotator "ChessBase"]
[PlyCount "62"]
[EventDate "2018.10.05"]
[EventType "swiss"]
[EventCountry "RUS"]
[SourceTitle "playchess.com"]
[Source "ChessBase"]
[SourceQuality "1"]
[TimeControl "900+10"]

1. e4 {[%emt 0:00:00]} c6 {[%emt 0:00:34]} 2. d4 {[%emt 0:00:00]} d5 {[%emt 0:00:04]} 3. e5 {[%emt 0:00:00]} Bf5 {[%emt 0:00:02]} 4. Nf3 {[%emt 0:00:00]} e6 {[%emt 0:00:01]} 5. Be2 {[%emt 0:00:00]} c5 {[%emt 0:00:01]} 6. Be3 {[%emt 0:00:29]} Qb6 {[%emt 0:00:01]} 7. Nc3 {[%emt 0:00:06]} Nc6 {[%emt 0:00:01]} 8. O-O {[%emt 0:01:14]} Qxb2 {[%emt 0:00:02]} 9. Qe1 {[%emt 0:00:01]} cxd4 {[%emt 0:00:02]} 10. Bxd4 {[%emt 0:00:28]} Nxd4 {[%emt 0:00:02]} 11. Nxd4 {[%emt 0:00:01]} Bb4 {[%emt 0:00:01]} 12. Bb5+ {[%emt 0:06:44]} Kf8 {[%emt 0:00:27]} 13. Rb1 {[%emt 0:00:02]} Bxc3 {[%emt 0:00:25]} 14. Rxb2 {[%emt 0:00:01]} Bxe1 {[%emt 0:00:02]} 15. Rxe1 {[%emt 0:00:01]} Ne7 {[%emt 0:00:28]} 16. Nxf5 {[%emt 0:00:15]} Nxf5 {[%emt 0:01:20]} 17. Bd3 {[%emt 0:00:01]} b6 {[%emt 0:00:03]} 18. Bxf5 {[%emt 0:00:03]} exf5 {[%emt 0:00:01]} 19. Rd1 {[%emt 0:02:59]} Ke7 {[%emt 0:02:13]} 20. Rxd5 {[%emt 0:00:27]} Rhd8 {[%emt 0:00:29]} 21. c4 {[%emt 0:01:18]} Rac8 {[%emt 0:00:06]} 22. Rxd8 {[%emt 0:00:02]} Rxd8 {[%emt 0:00:04]} 23. g3 {[%emt 0:00:02]} Rd1+ {[%emt 0:00:55]} 24. Kg2 {[%emt 0:00:00]} Rc1 {[%emt 0:00:02]} 25. Rb4 {[%emt 0:00:45]} Kd7 {[%emt 0:01:26]} 26. a4 {[%emt 0:02:08]} Kc6 {[%emt 0:00:28]} 27. a5 {[%emt 0:00:09]} bxa5 {[%emt 0:00:09]} 28. Rb5 {[%emt 0:00:01]} Rxc4 {[%emt 0:01:18]} 29. Rxa5 {[%emt 0:00:01]} Kb6 {[%emt 0:00:01]} 30. Ra1 {[%emt 0:00:34]} a5 {[%emt 0:00:03]} 31. Kf3 {[%emt 0:00:01]} Re4 {[%emt 0:01:03]} 0-1

[Event "RUS-ch Rapid Men 2018"]
[Site "Sochi"]
[Date "2018.10.06"]
[Round "8"]
[White "Chekhov, Sergei"]
[Black "Bykov, Oleg"]
[Result "1-0"]
[ECO "C10"]
[WhiteElo "2463"]
[BlackElo "2411"]
[Annotator "ChessBase"]
[PlyCount "69"]
[EventDate "2018.10.05"]
[EventType "swiss"]
[EventCountry "RUS"]
[SourceTitle "playchess.com"]
[Source "ChessBase"]
[SourceQuality "1"]
[TimeControl "900+10"]

1. e4 {[%emt 0:00:00]} e6 {[%emt 0:00:00]} 2. d4 {[%emt 0:00:00]} d5 {[%emt 0:00:00]} 3. Nc3 {[%emt 0:00:00]} Nc6 {[%emt 0:00:00]} 4. Nf3 {[%emt 0:00:13]} Nf6 {[%emt 0:00:00]} 5. Bg5 {[%emt 0:00:15]} Be7 {[%emt 0:00:00]} 6. Bxf6 {[%emt 0:00:37]} Bxf6 {[%emt 0:00:00]} 7. Bb5 {[%emt 0:00:04]} O-O {[%emt 0:00:09]} 8. Qd2 {[%emt 0:01:11]} Na5 {[%emt 0:01:06]} 9. O-O {[%emt 0:01:49]} c6 {[%emt 0:02:13]} 10. Bd3 {[%emt 0:00:05]} b6 {[%emt 0:02:37]} 11. Rfe1 {[%emt 0:00:13]} Bb7 {[%emt 0:00:22]} 12. e5 {[%emt 0:00:30]} Be7 {[%emt 0:00:02]} 13. Ne2 {[%emt 0:00:47]} c5 {[%emt 0:00:50]} 14. c3 {[%emt 0:00:02]} cxd4 {[%emt 0:00:27]} 15. Nexd4 {[%emt 0:00:44]} Rc8 {[%emt 0:00:28]} 16. Rad1 {[%emt 0:00:08]} a6 {[%emt 0:00:41]} 17. Qf4 {[%emt 0:00:40]} b5 {[%emt 0:00:39]} 18. h4 {[%emt 0:00:10]} h6 {[%emt 0:00:23]} 19. g3 {[%emt 0:00:11]} Nc6 {[%emt 0:02:26]} 20. Bb1 {[%emt 0:00:49]} Nxd4 {[%emt 0:00:28]} 21. Nxd4 {[%emt 0:00:10]} h5 {[%emt 0:01:13]} 22. Qd2 {[%emt 0:01:14]} Qb6 {[%emt 0:00:11]} 23. Qd3 {[%emt 0:01:55]} g6 {[%emt 0:00:01]} 24. g4 {[%emt 0:00:01]} hxg4 {[%emt 0:01:32]} 25. h5 {[%emt 0:00:52]} Kg7 {[%emt 0:00:28]} 26. hxg6 {[%emt 0:00:01]} f5 {[%emt 0:00:43]} 27. exf6+ {[%emt 0:00:34]} Rxf6 {[%emt 0:00:01]} 28. Qe2 {[%emt 0:00:29]} Rcf8 {[%emt 0:00:24]} 29. Qxg4 {[%emt 0:02:36]} Bc8 {[%emt 0:00:02]} 30. Re5 {[%emt 0:00:20]} Rf4 {[%emt 0:01:01]} 31. Qh3 {[%emt 0:01:39]} Rh8 {[%emt 0:00:13]} 32. Qe3 {[%emt 0:00:12]} Rg4+ {[%emt 0:00:45]} 33. Kf1 {[%emt 0:00:01]} Bc5 {[%emt 0:00:51]} 34. Rxe6 {[%emt 0:01:35]} Qa7 {[%emt 0:00:01]} 35. Nf5+ {[%emt 0:00:10]} 1-0

[Event "RUS-ch Rapid Men 2018"]
[Site "Sochi"]
[Date "2018.10.06"]
[Round "8"]
[White "Belyakov, Bogdan"]
[Black "Savchenko, Boris"]
[Result "0-1"]
[ECO "B22"]
[WhiteElo "2458"]
[BlackElo "2562"]
[Annotator "ChessBase"]
[PlyCount "74"]
[EventDate "2018.10.05"]
[EventType "swiss"]
[EventCountry "RUS"]
[SourceTitle "playchess.com"]
[Source "ChessBase"]
[SourceQuality "1"]
[TimeControl "900+10"]

1. e4 {[%emt 0:00:00]} c5 {[%emt 0:00:00]} 2. c3 {[%emt 0:00:00]} Nf6 {[%emt 0:00:00]} 3. e5 {[%emt 0:00:00]} Nd5 {[%emt 0:00:02]} 4. d4 {[%emt 0:00:25]} cxd4 {[%emt 0:00:03]} 5. cxd4 {[%emt 0:00:01]} d6 {[%emt 0:00:02]} 6. Nf3 {[%emt 0:00:07]} dxe5 {[%emt 0:00:02]} 7. Nxe5 {[%emt 0:00:35]} Nc6 {[%emt 0:00:02]} 8. Bc4 {[%emt 0:02:02]} e6 {[%emt 0:04:08]} 9. O-O {[%emt 0:00:50]} Be7 {[%emt 0:00:11]} 10. Nc3 {[%emt 0:02:25]} Nxc3 {[%emt 0:01:37]} 11. bxc3 {[%emt 0:00:07]} Nxe5 {[%emt 0:00:03]} 12. dxe5 {[%emt 0:00:01]} Qxd1 {[%emt 0:01:14]} 13. Rxd1 {[%emt 0:00:02]} Bd7 {[%emt 0:00:01]} 14. Be3 {[%emt 0:00:33]} Rc8 {[%emt 0:02:54]} 15. Be2 {[%emt 0:00:17]} Bc5 {[%emt 0:00:10]} 16. Bd4 {[%emt 0:00:33]} Ke7 {[%emt 0:00:42]} 17. a4 {[%emt 0:00:41]} b6 {[%emt 0:01:35]} 18. a5 {[%emt 0:00:36]} b5 {[%emt 0:00:20]} 19. a6 {[%emt 0:00:58]} Bxd4 {[%emt 0:01:44]} 20. cxd4 {[%emt 0:00:07]} Rc2 {[%emt 0:00:02]} 21. Bf3 {[%emt 0:00:25]} Rhc8 {[%emt 0:00:16]} 22. Rab1 {[%emt 0:01:20]} Ra2 {[%emt 0:00:26]} 23. Bb7 {[%emt 0:00:21]} Rcc2 {[%emt 0:00:06]} 24. f4 {[%emt 0:00:02]} Rd2 {[%emt 0:01:05]} 25. h3 {[%emt 0:02:03]} f5 {[%emt 0:01:35]} 26. Rbc1 {[%emt 0:03:15]} Rac2 {[%emt 0:00:17]} 27. Rb1 {[%emt 0:00:12]} Rxd1+ {[%emt 0:00:17]} 28. Rxd1 {[%emt 0:00:01]} b4 {[%emt 0:00:01]} 29. Rb1 {[%emt 0:00:52]} Rc4 {[%emt 0:00:09]} 30. Kf2 {[%emt 0:00:15]} Rxd4 {[%emt 0:00:03]} 31. Ke3 {[%emt 0:00:01]} Rc4 {[%emt 0:00:02]} 32. g4 {[%emt 0:00:07]} g6 {[%emt 0:00:28]} 33. gxf5 {[%emt 0:00:02]} gxf5 {[%emt 0:00:01]} 34. Bf3 {[%emt 0:00:57]} Ba4 {[%emt 0:00:33]} 35. Rg1 {[%emt 0:00:08]} Kf8 {[%emt 0:00:04]} 36. Rg2 {[%emt 0:00:15]} Rc3+ {[%emt 0:00:03]} 37. Kf2 {[%emt 0:00:12]} Rxf3+ {[%emt 0:00:03]} 0-1